bitfinex-derivatives/quotes_BNBF0:USTF0_20250908
["timestamp","ask_amount","ask_price","bid_price","bid_amount"]
[1757348777214,2.54798815,877.59,875.29,0.19821267]
[1757348785919,2.54798815,877.6,875.29,0.19821267]
[1757348787120,1.01925303,877.63,875.29,0.19821267]
[1757348787324,2.54798815,877.64,875.29,0.19821267]
[1757348787624,2.54798815,877.65,875.29,0.19821267]
[1757348787822,2.54798815,877.69,875.29,0.19821267]
[1757348788320,2.54792413,877.8,875.29,0.19821267]
[1757348788321,2.54798815,877.73,875.29,0.19821267]
[1757348790522,2.54798815,877.75,875.29,0.19821267]
[1757348794229,2.54798815,877.78,875.29,0.19821267]
[1757348797629,2.54798815,877.84,875.29,0.19821267]
[1757348800030,2.54798815,877.85,875.29,0.19821267]
[1757348800830,2.54798815,877.86,875.29,0.19821267]
[1757348801727,3.18065634,877.85,875.29,0.19821267]
[1757348802027,2.54798815,877.85,875.29,0.19821267]
[1757348808936,3.18122572,877.84,875.29,0.19821267]
[1757348809134,2.54798815,877.84,875.29,0.19821267]
[1757348812240,2.54798815,877.81,875.29,0.19821267]
[1757348812436,2.54798815,877.75,875.29,0.19821267]
[1757348814540,3.18293031,877.74,875.29,0.19821267]
[1757348814836,2.54798815,877.74,875.29,0.19821267]
[1757348815647,2.54798815,877.74,875.3,1.53510129]
[1757348816144,2.54798815,877.74,875.29,0.19821267]
[1757348816343,2.54798815,877.7,875.29,0.19821267]
[1757348816641,2.54798815,877.66,875.29,0.19821267]
[1757348817946,2.54798815,877.67,875.29,0.19821267]
[1757348819147,2.54798815,877.67,875.29,1.73331396]
[1757348819345,2.54798815,877.67,875.34,1.53510129]
[1757348819547,2.54798815,877.67,875.35,1.53510129]
[1757348819744,2.54798815,877.67,875.33,1.53510129]
[1757348819945,3.1846897,877.66,875.33,1.53510129]
[1757348820243,2.54798815,877.66,875.33,1.53510129]
[1757348820747,2.54798815,877.66,875.34,1.53510129]
[1757348821745,2.54798815,877.67,875.38,1.53510129]
[1757348822244,2.54798815,877.67,875.39,1.53510129]
[1757348822447,2.54798815,877.67,875.41,1.53510129]
[1757348822645,2.54798815,877.67,875.46,1.53510129]
[1757348823447,2.54798815,877.67,875.29,0.19821267]
[1757348823448,2.54798815,877.67,875.5,1.53510129]
[1757348824249,2.54798815,877.67,875.52,1.53510129]
[1757348824449,2.54798815,877.67,875.53,1.53510129]
[1757348824948,2.54798815,877.67,875.52,1.53510129]
[1757348825648,2.54798815,877.67,875.53,1.53510129]
[1757348826449,2.54798815,877.67,875.54,1.53510129]
[1757348827452,2.54798815,877.67,875.55,1.53510129]
[1757348828246,2.54798815,877.67,875.29,0.19821267]
[1757348828247,2.54798815,877.67,875.56,1.53510129]
[1757348829549,2.54798815,877.67,875.57,1.53510129]
[1757348829752,2.54798815,877.67,875.58,1.53510129]
[1757348830654,2.54798815,877.67,875.55,1.53510129]
[1757348831254,2.54798815,877.67,875.56,1.53510129]
[1757348832252,2.54798815,877.67,875.6,1.53510129]
[1757348832455,2.54798815,877.67,875.56,1.53510129]
[1757348832957,2.54798815,877.67,875.55,1.53510129]
[1757348833156,2.54798815,877.67,875.56,1.53510129]
[1757348833356,2.54798815,877.67,875.55,1.53510129]
[1757348835254,2.54798815,877.67,875.58,1.53510129]
[1757348837358,2.54798815,877.67,875.51,1.53510129]
[1757348837557,2.54798815,877.67,875.47,1.53510129]
[1757348840064,2.54798815,877.67,875.48,1.53510129]
[1757348840663,2.54798815,877.67,875.49,1.53510129]
[1757348842363,2.54798815,877.67,875.51,1.53510129]
[1757348843161,2.54798815,877.67,875.52,1.53510129]
[1757348846066,2.54798815,877.67,875.5,1.53510129]
[1757348846666,3.18724263,877.66,875.48,1.53510129]
[1757348846869,2.54798815,877.66,875.49,1.53510129]
[1757348847068,3.18723619,877.65,875.46,1.53510129]
[1757348847268,2.54792413,878.33,875.29,0.19821267]
[1757348847269,2.54798815,877.63,875.48,1.53510129]
[1757348847468,2.54798815,877.63,875.55,1.53510129]
[1757348847671,2.54798815,877.63,875.5,1.53510129]
[1757348849072,2.54798815,877.63,875.49,1.53510129]
[1757348850073,2.54798815,877.63,875.48,1.53510129]
[1757348850873,2.54798815,877.63,875.46,1.53510129]
[1757348851370,2.54798815,877.63,875.47,1.53510129]
[1757348852769,2.54798815,877.63,875.48,1.53510129]
[1757348852974,2.54798815,877.63,875.49,1.53510129]
[1757348853176,2.54798815,877.63,875.48,1.53510129]
[1757348856377,2.54798815,877.63,875.5,1.53510129]
[1757348856574,2.54798815,877.59,875.46,1.53510129]
[1757348856978,2.54798815,877.59,875.47,1.53510129]
[1757348857474,2.54792413,878.1,875.39,1.53510129]
[1757348857475,2.54798815,877.55,875.39,1.53510129]
[1757348858079,2.54798815,877.55,875.4,1.53510129]
[1757348858980,2.54798815,877.5,875.38,1.53510129]
[1757348859280,2.54798815,877.44,875.33,1.53510129]
[1757348859477,2.54798815,877.44,875.34,1.53510129]
[1757348862382,2.54798815,877.44,875.33,1.53510129]
[1757348864279,2.54798815,877.44,875.37,1.53510129]
[1757348865280,2.54798815,877.44,875.36,1.53510129]
[1757348865485,2.54798815,877.44,875.37,1.53510129]
[1757348866382,2.54798815,877.44,875.36,1.53510129]
[1757348867986,2.54798815,877.44,875.35,1.53510129]
[1757348868281,3.18696706,877.43,875.36,1.53510129]
[1757348868487,2.54798815,877.43,875.36,1.53510129]
[1757348869083,2.54798815,877.43,875.41,1.53510129]
[1757348869583,2.54798815,877.36,875.32,1.53510129]
[1757348869787,2.54798815,877.36,875.31,1.53510129]
[1757348870283,2.54798815,877.36,875.32,1.53510129]
[1757348872384,2.54798815,877.36,875.29,0.19821267]
[1757348872987,3.18685695,877.35,875.29,0.19821267]
[1757348873182,2.54798815,877.35,875.29,0.19821267]
[1757348873383,2.54792413,877.83,875.29,0.19821267]
[1757348873384,2.54798815,877.32,875.29,0.19821267]
[1757348884897,0.63822464,877.31,875.08,1.53510129]
[1757348885098,0.63822464,877.31,874.18,2.55159737]
[1757348885099,2.54798815,877.29,875.05,1.53510129]
[1757348885395,3.18615316,877.28,875.04,1.53510129]
[1757348885596,2.54798815,877.28,875.04,1.53510129]
[1757348887298,2.54798815,877.28,875.03,1.53510129]
[1757348888801,2.54798815,877.28,875.02,1.53510129]
[1757348889204,2.54798815,877.28,875.4,0.19812972]
[1757348889503,2.54798815,877.29,875.4,0.19812972]
[1757348890202,2.54798815,877.35,875.4,0.19812972]
[1757348890701,2.54798815,877.37,875.4,0.19812972]
[1757348892712,2.54798815,877.42,875.4,0.19812972]
[1757348894112,3.18615935,877.41,875.4,0.19812972]
[1757348894310,2.54798815,877.41,875.4,0.19812972]
[1757348895810,2.54798815,877.42,875.4,0.19812972]
[1757348896014,2.54798815,877.46,875.4,0.19812972]
[1757348896512,2.54798815,877.48,875.4,0.19812972]
[1757348896814,2.54798815,877.53,875.4,1.73323101]
[1757348897311,2.54798815,877.53,875.43,1.53510129]
[1757348897609,2.54798815,877.53,875.44,1.53510129]
[1757348898010,2.54798815,877.53,875.42,1.53510129]
[1757348898509,2.54798815,877.58,875.46,1.53510129]
[1757348899612,2.54798815,877.64,875.54,1.53510129]
[1757348901016,2.54798815,877.64,875.59,1.53510129]
[1757348901214,2.54798815,877.65,875.6,1.53510129]
[1757348902217,2.54798815,877.65,875.59,1.53510129]
[1757348902414,2.54798815,877.65,875.51,1.53510129]
[1757348904417,2.54798815,877.65,875.49,1.53510129]
[1757348905118,2.54798815,877.65,875.5,1.53510129]
[1757348905318,2.54798815,877.65,875.51,1.53510129]
[1757348905516,2.54798815,877.65,875.5,1.53510129]
[1757348905720,2.54798815,877.65,875.47,1.53510129]
[1757348905920,2.54798815,877.71,875.53,1.53510129]
[1757348906921,2.54798815,877.73,875.55,1.53510129]
[1757348907322,2.54798815,877.73,875.56,1.53510129]
[1757348907520,2.54798815,877.74,875.56,1.53510129]
[1757348908521,2.54798815,877.74,875.55,1.53510129]
[1757348909324,2.54798815,877.74,875.62,1.53510129]
[1757348909522,3.18620163,877.73,875.61,1.53510129]
[1757348909719,2.54798815,877.73,875.61,1.53510129]
[1757348910023,2.54798815,877.73,875.4,0.19812972]
[1757348910024,2.54798815,877.73,875.6,1.53510129]
[1757348910220,2.54798815,877.73,875.61,1.53510129]
[1757348910523,2.54798815,877.73,875.6,1.53510129]
[1757348911724,2.54798815,877.83,875.41,1.53510129]
[1757348912325,2.54798815,877.83,875.4,1.73323101]
[1757348912521,2.54798815,877.83,875.4,0.19812972]
[1757348915023,2.54798815,877.84,875.41,1.53510129]
[1757348916625,2.54798815,877.84,875.4,0.19812972]
[1757348916827,2.54798815,877.84,875.4,1.73323101]
[1757348917426,2.54798815,877.84,875.4,0.19812972]
[1757348922125,2.54798815,877.84,875.4,1.73323101]
[1757348922330,2.54798815,877.84,875.4,0.19812972]
[1757348932333,2.54798815,877.84,875.5,1.53510129]
[1757348932733,2.54798815,877.84,875.49,1.53510129]
[1757348933235,2.54798815,877.84,875.5,1.53510129]
[1757348934135,2.54798815,877.84,875.48,1.53510129]
[1757348934338,2.54798815,877.84,875.49,1.53510129]
[1757348934535,2.54798815,877.84,875.45,1.53510129]
[1757348936340,2.54798815,877.84,875.46,1.53510129]
[1757348936738,2.54798815,877.84,875.48,1.53510129]
[1757348937341,2.54798815,877.84,875.49,1.53510129]
[1757348937739,2.54798815,877.84,875.48,1.53510129]
[1757348938140,2.54798815,877.84,875.4,0.19812972]
[1757348939238,2.54798815,877.84,875.4,1.73323101]
[1757348939943,2.54798815,877.84,875.4,0.19812972]
[1757348941542,2.54798815,877.84,875.4,1.73323101]
[1757348942443,2.54798815,877.84,875.4,0.19812972]
[1757348943648,2.54798815,877.84,875.4,1.73323101]
[1757348944352,2.54798815,877.84,875.41,1.53510129]
[1757348945551,2.54798815,877.84,875.43,1.53510129]
[1757348946551,2.54798815,877.84,875.45,1.53510129]
[1757348947350,2.54798815,877.84,875.48,1.53510129]
[1757348948055,2.54798815,877.84,875.53,1.53510129]
[1757348948457,2.54798815,877.84,875.56,1.53510129]
[1757348949354,2.54798815,877.84,875.59,1.53510129]
[1757348949858,2.54798815,877.84,875.61,1.53510129]
[1757348950255,2.54798815,877.84,875.64,1.53510129]
[1757348950459,2.54798815,877.84,875.65,1.53510129]
[1757348950857,2.54798815,877.84,875.66,1.53510129]
[1757348951560,2.54798815,877.84,875.68,1.53510129]
[1757348952457,2.54798815,877.84,875.4,0.19812972]
[1757348952458,2.54798815,877.84,875.77,1.53510129]
[1757348953361,2.54798815,877.84,875.79,1.53510129]
[1757348953656,2.54798815,877.84,875.8,1.53510129]
[1757348954359,2.54798815,877.84,875.81,1.53510129]
[1757348954660,2.54798815,877.84,875.82,1.53510129]
[1757348955560,2.54798815,877.84,875.84,1.53510129]
[1757348955760,2.54798815,877.84,875.85,1.53510129]
[1757348956359,2.54798815,877.84,875.86,1.53510129]
[1757348956763,2.54798815,877.84,875.81,1.53510129]
[1757348957466,2.54798815,877.84,875.71,1.53510129]
[1757348958566,2.54798815,877.84,875.72,1.53510129]
[1757348959367,2.54798815,877.84,875.73,1.53510129]
[1757348961471,2.54798815,877.84,875.74,1.53510129]
[1757348963269,2.54798815,877.84,875.4,0.19812972]
[1757348963270,2.54798815,877.84,875.75,1.53510129]
[1757348963466,2.54798815,877.84,875.76,1.53510129]
[1757348964069,2.54798815,877.84,875.75,1.53510129]
[1757348964466,2.54798815,877.84,875.76,1.53510129]
[1757348965371,2.54798815,877.84,875.77,1.53510129]
[1757348966374,2.54798815,877.84,875.78,1.53510129]
[1757348966675,2.54798815,877.84,875.8,1.53510129]
[1757348967372,2.54798815,877.84,875.91,1.53510129]
[1757348968376,2.54798815,877.84,875.92,1.53510129]
[1757348970172,2.54798815,877.84,875.93,1.53510129]
[1757348970576,2.54798815,877.84,875.94,1.53510129]
[1757348970873,2.54798815,877.84,875.95,1.53510129]
[1757348971474,2.54798815,877.84,875.97,1.53510129]
[1757348971777,2.54798815,877.84,875.96,1.53510129]
[1757348972175,1.12831002,877.84,875.96,1.53510129]
[1757348972373,0.72969348,877.84,876.0,1.53510129]
[1757348972674,0.72969348,877.84,876.22,1.02143604]
[1757348973574,0.72969348,877.84,876.21,1.02143604]
[1757348973781,0.72969348,877.84,876.23,1.02143604]
[1757348974279,3.27761761,877.84,876.23,1.02143604]
[1757348975880,3.27761761,877.84,876.24,1.02143604]
[1757348976076,3.27761761,877.84,876.23,1.02143604]
[1757348977381,3.27761761,877.84,876.17,1.02143604]
[1757348977876,3.27761761,877.84,876.16,1.02143604]
[1757348977877,0.72969348,877.84,876.16,1.02143604]
[1757348982083,0.19231584,877.84,876.17,1.02143604]
[1757348982380,0.19231584,877.84,876.11,1.02143604]
[1757348982778,0.19231584,877.84,876.13,1.02143604]
[1757348983783,0.19231584,877.84,876.11,1.02143604]
[1757348984784,0.19231584,877.84,876.1,1.02143604]
[1757348987385,0.19231584,877.84,876.12,1.02143604]
[1757348992287,0.19231584,877.84,876.18,1.02143604]
[1757348992791,0.19231584,877.84,876.16,1.02143604]
[1757348993393,2.54792413,877.98,876.15,1.02143604]
[1757348993995,0.63726998,877.97,876.15,1.02143604]
[1757348994195,0.63726998,877.96,875.95,1.53510129]
[1757348994391,0.63726998,877.95,875.95,1.53510129]
[1757348994595,0.63726998,877.94,875.94,1.53510129]
[1757348994895,0.63726998,877.93,875.94,1.53510129]
[1757348995195,0.63726998,877.92,875.94,1.53510129]
[1757348995394,0.63726998,877.91,875.94,1.53510129]
[1757348995693,0.63726998,877.9,875.94,1.53510129]
[1757348995890,0.63726998,877.89,875.94,1.53510129]
[1757348996190,0.63726998,877.88,875.96,1.53510129]
[1757348996394,0.63726998,877.87,875.96,1.53510129]
[1757348996594,0.63726998,877.86,875.96,1.53510129]
[1757348996791,3.56523548,878.29,875.96,1.53510129]
[1757348996792,0.63726998,877.85,875.96,1.53510129]
[1757348996996,0.63726998,877.84,875.94,1.53510129]
[1757348997292,0.63726998,877.83,875.85,1.53510129]
[1757348997496,2.54792413,878.2,875.85,1.53510129]
[1757348997697,0.63719979,878.19,875.85,1.53510129]
[1757348997892,0.63719979,878.18,875.85,1.53510129]
[1757348998097,0.63719979,878.17,875.85,1.53510129]
[1757348998294,0.63719979,878.16,875.85,1.53510129]
[1757348998497,0.63719979,878.15,875.85,1.53510129]
[1757348998792,0.63719979,878.14,875.85,1.53510129]
[1757348998997,0.63719979,878.13,875.85,1.53510129]
[1757348999197,0.63719979,878.12,875.85,1.53510129]
[1757348999399,0.63719979,878.11,875.85,1.53510129]
[1757348999697,0.63719979,878.1,875.84,1.53510129]
[1757348999894,0.63719979,878.09,875.84,1.53510129]
[1757349000194,0.09207451,878.22,876.94,1.53510129]
[1757349000598,3.56523548,878.66,876.94,1.53510129]
[1757349000893,5.09371095,879.34,876.95,1.53510129]
[1757349001392,5.09371095,879.34,877.25,1.02204475]
[1757349001798,3.56523548,879.83,877.25,1.02204475]
[1757349002194,1.53294676,878.52,877.24,1.02204475]
[1757349002598,1.53294676,878.51,877.24,1.02204475]
[1757349002897,1.53294676,878.49,877.11,1.02204475]
[1757349003097,1.53294676,878.46,877.08,1.02204475]
[1757349003294,1.53294676,878.48,877.06,1.02204475]
[1757349003595,1.53294676,878.33,877.14,1.02204475]
[1757349004296,1.53294676,878.33,876.18,2.55159737]
[1757349004297,1.53294676,878.26,877.1,1.02204475]
[1757349004597,1.53294676,878.27,877.09,1.02204475]
[1757349005095,1.53294676,878.31,877.07,1.02204475]
[1757349005294,1.53294676,878.31,876.87,1.53510129]
[1757349005295,1.53294676,878.39,876.98,1.02204475]
[1757349005594,1.53294676,878.4,876.99,1.02204475]
[1757349005798,1.53294676,878.42,877.01,1.02204475]
[1757349007297,1.53294676,878.43,877.0,1.02204475]
[1757349007501,1.53294676,878.42,877.01,1.02204475]
[1757349008197,1.53294676,878.43,877.0,1.02204475]
[1757349009102,1.02060014,878.2,877.0,1.02204475]
[1757349009297,0.6911501,878.21,877.0,1.02204475]
[1757349009597,1.53294676,878.44,877.01,1.02204475]
[1757349009801,0.40133126,878.44,877.01,1.02204475]
[1757349010298,2.55147418,879.34,877.0,1.02204475]
[1757349010496,2.55147418,879.34,877.04,1.02204475]
[1757349010699,2.55147418,879.38,877.04,1.02204475]
[1757349010897,2.55147418,879.38,877.07,1.02204475]
[1757349011102,2.55147418,879.38,877.08,1.02204475]
[1757349011303,2.55147418,879.42,877.09,1.02204475]
[1757349011800,2.55147418,879.37,877.09,1.02204475]
[1757349012005,2.55147418,879.37,877.01,1.02204475]
[1757349012304,2.55147418,879.29,877.01,1.02204475]
[1757349012506,2.55147418,879.29,876.98,1.02204475]
[1757349012806,2.55147418,879.39,876.98,1.02204475]
[1757349013101,2.55147418,879.39,877.01,1.02204475]
[1757349013305,2.55147418,879.29,877.01,1.02204475]
[1757349013802,2.55147418,879.28,877.01,1.02204475]
[1757349014605,2.55147418,879.28,877.0,1.02204475]
[1757349015005,2.55147418,879.29,877.0,1.02204475]
[1757349015502,2.55147418,879.29,877.01,1.02204475]
[1757349016005,2.55147418,879.26,877.01,1.02204475]
[1757349017204,2.55147418,879.26,877.02,1.02204475]
[1757349017406,2.55147418,879.25,877.01,1.02204475]
[1757349018006,2.55147418,879.25,877.0,1.02204475]
[1757349018609,2.55147418,879.3,877.0,1.02204475]
[1757349020609,2.55147418,879.25,877.01,1.02204475]
[1757349021411,2.55147418,879.4,876.97,1.02204475]
[1757349021910,2.55147418,879.4,876.82,1.02204475]
[1757349022308,2.55147418,879.24,876.84,1.02204475]
[1757349022811,2.55147418,879.15,876.84,1.02204475]
[1757349023308,2.55147418,879.15,876.85,1.02204475]
[1757349023812,2.55147418,879.14,876.86,1.02204475]
[1757349024011,2.55147418,879.14,876.87,1.02204475]
[1757349024208,2.55147418,879.03,876.88,1.02204475]
[1757349024409,2.55147418,879.03,876.95,1.02204475]
[1757349024609,3.56523548,879.02,876.95,1.02204475]
[1757349024812,2.55147418,878.72,876.94,1.02204475]
[1757349025108,1.74661829,878.72,876.94,1.02204475]
[1757349025611,3.56523548,879.02,876.9,1.02204475]
[1757349025909,5.09371095,879.52,876.92,1.02204475]
[1757349026210,5.09371095,879.52,876.95,1.02204475]
[1757349026509,5.09371095,879.52,877.07,1.02204475]
[1757349026712,3.56523548,879.11,877.06,1.02204475]
[1757349027516,3.56523548,879.11,876.95,1.02204475]
[1757349027715,3.56523548,879.11,876.96,1.02204475]
[1757349027916,3.56523548,879.58,876.95,1.02204475]
[1757349028112,3.56523548,879.58,876.93,1.02204475]
[1757349028314,3.56523548,879.58,877.02,1.02204475]
[1757349028813,3.56523548,879.34,876.99,1.02204475]
[1757349029018,3.56523548,879.34,876.98,1.02204475]
[1757349029214,3.56523548,879.34,876.96,1.02204475]
[1757349029418,3.56523548,879.34,876.91,1.02204475]
[1757349029818,1.53082395,878.19,876.92,1.02204475]
[1757349030015,0.45572979,878.19,876.92,1.02204475]
[1757349031120,3.56523548,879.35,877.14,0.76537376]
[1757349031620,3.56523548,879.35,877.13,0.76537376]
[1757349031824,3.56523548,879.35,877.14,0.76537376]
[1757349032021,3.56523548,879.59,877.37,0.76537376]
[1757349032921,3.56523548,879.57,877.37,0.76537376]
[1757349033220,3.56523548,879.57,877.39,0.76537376]
[1757349033926,3.56523548,879.36,877.39,0.76537376]
[1757349034123,2.55139899,879.03,877.39,0.76537376]
[1757349034327,2.55139899,879.03,877.37,0.76537376]
[1757349034624,2.55139899,879.15,877.37,0.76537376]
[1757349035723,2.55139899,879.14,877.37,0.76537376]
[1757349036828,2.55139899,879.14,877.35,0.76537376]
[1757349037228,2.55139899,879.26,877.14,1.02204475]
[1757349037528,2.55139899,879.26,877.12,1.02204475]
[1757349037730,2.55139899,879.42,877.1,1.02204475]
[1757349038028,2.55139899,879.42,877.06,1.02204475]
[1757349038225,5.09371095,880.29,877.06,1.02204475]
[1757349038226,2.55139899,879.35,877.06,1.02204475]
[1757349039329,1.02061255,878.26,877.06,1.02204475]
[1757349040331,1.02061255,878.37,876.97,1.02204475]
[1757349042031,1.02061255,878.1,876.72,1.02204475]
[1757349042432,1.02061255,878.1,876.47,1.53510129]
[1757349042433,1.02061255,878.13,876.7,1.02204475]
[1757349043833,1.02061255,878.11,876.71,1.02204475]
[1757349044129,1.02061255,878.11,876.72,1.02204475]
[1757349044634,1.02061255,878.1,876.72,1.02204475]
[1757349046332,1.02061255,878.09,876.73,1.02204475]
[1757349046531,1.02061255,878.08,876.73,1.02204475]
[1757349050239,1.02061255,878.08,876.48,1.53510129]
[1757349050240,0.71674322,877.99,876.8,1.02204475]
[1757349050639,1.53094907,878.22,877.03,0.76504608]
[1757349051041,1.53094907,878.26,877.05,0.76504608]
[1757349051337,1.53094907,878.21,877.09,0.76504608]
[1757349052038,1.53094907,878.47,877.35,0.76504608]
[1757349052342,2.55139899,879.08,877.38,0.76504608]
[1757349052539,2.55139899,879.08,877.41,0.76504608]
[1757349052739,2.55139899,879.17,877.45,0.76504608]
[1757349053944,2.55139899,879.14,877.45,0.76504608]
[1757349054542,2.55139899,879.13,877.45,0.76504608]
[1757349054842,2.55139899,879.22,877.43,0.76504608]
[1757349055343,2.55139899,879.22,877.24,1.02204475]
[1757349055344,2.55139899,879.34,877.42,0.76504608]
[1757349055838,2.55139899,879.31,877.42,0.76504608]
[1757349057143,2.55139899,879.32,877.42,0.76468137]
[1757349057343,2.55139899,879.32,877.41,0.76468137]
[1757349057543,2.55139899,879.46,877.4,0.76468137]
[1757349058744,2.55139899,879.46,877.41,0.76468137]
[1757349058941,2.55139899,879.46,877.39,0.76468137]
[1757349059142,2.55139899,879.73,877.41,0.76468137]
[1757349059842,2.55139899,879.73,877.39,0.76468137]
[1757349060240,2.55139899,879.7,877.39,0.76468137]
[1757349061645,2.55139899,879.66,877.36,0.76468137]
[1757349062145,2.55139899,879.66,875.88,2.55159737]
[1757349062146,2.55139899,879.66,877.01,0.76468137]
[1757349062344,2.55139899,879.36,877.01,0.76468137]
[1757349062743,2.55139899,879.38,876.99,0.76468137]
[1757349063345,2.55139899,879.38,877.01,0.76468137]
[1757349063942,2.55139899,879.24,877.0,0.76468137]
[1757349064346,2.55139899,879.24,876.77,1.02204475]
[1757349064347,2.55139899,879.23,877.01,0.76468137]
[1757349064947,2.55139899,879.22,877.01,0.76468137]
[1757349065449,2.55139899,879.23,877.01,0.76468137]
[1757349065948,2.55139899,879.23,877.0,0.76468137]
[1757349066644,2.55139899,879.23,877.01,0.76468137]
[1757349066845,2.55139899,879.2,877.01,0.76468137]
[1757349067452,2.55139899,879.2,876.98,0.76468137]
[1757349067950,2.55139899,879.18,876.98,0.76468137]
[1757349068453,2.55139899,879.26,876.91,0.76468137]
[1757349068953,2.55139899,879.23,876.89,0.76468137]
[1757349069551,2.55139899,879.26,876.89,0.76468137]
[1757349069755,2.55139899,879.26,876.84,0.76468137]
[1757349070055,2.55139899,878.76,876.84,0.76468137]
[1757349070254,2.55139899,878.76,876.62,1.02204475]
[1757349070651,2.55139899,878.77,876.62,1.02204475]
[1757349071154,2.55139899,878.77,876.61,1.02204475]
[1757349071658,2.55139899,878.78,876.61,1.02204475]
[1757349071954,2.55139899,878.78,876.67,1.02204475]
[1757349072157,2.55139899,878.93,876.67,1.02204475]
[1757349072353,2.55139899,878.93,876.66,1.02204475]
[1757349072354,1.53087772,878.07,876.66,1.02204475]
[1757349072557,1.53087772,878.08,876.66,1.02204475]
[1757349073353,1.53087772,878.08,876.65,1.02204475]
[1757349074257,1.53087772,878.07,876.62,1.02204475]
[1757349074554,1.53087772,878.07,876.61,1.02204475]
[1757349074757,1.53087772,878.02,876.57,1.02204475]
[1757349075054,1.53087772,877.97,876.52,1.02204475]
[1757349075254,1.53087772,877.98,876.51,1.02204475]
[1757349076359,1.53087772,877.89,876.48,1.02204475]
[1757349077152,1.53087772,877.9,876.46,1.02204475]
[1757349077653,0.42994546,877.84,876.5,1.02204475]
[1757349078253,2.55139899,878.56,876.49,1.02204475]
[1757349078453,2.55139899,878.61,876.7,0.76415563]
[1757349079153,2.55139899,878.61,876.69,0.76415563]
[1757349079357,2.55139899,878.62,876.69,0.76415563]
[1757349080159,1.01861218,877.72,876.68,0.76415563]
[1757349080559,0.70166483,877.72,876.68,0.76415563]
[1757349081156,0.70166483,877.72,876.67,0.76415563]
[1757349081359,2.55139899,878.63,876.67,0.76415563]
[1757349081560,2.55139899,878.65,876.67,0.76415563]
[1757349082062,2.55139899,878.92,876.94,0.76415563]
[1757349082262,2.55139899,878.92,876.93,0.76415563]
[1757349082561,3.56523548,879.01,876.9,0.76415563]
[1757349082857,2.55139899,879.11,876.9,0.76415563]
[1757349083261,2.55139899,879.11,876.89,0.76415563]
[1757349083559,2.55139899,879.12,876.89,0.76415563]
[1757349084257,2.55139899,879.13,876.88,0.76415563]
[1757349084658,2.55139899,879.14,876.89,0.76415563]
[1757349085161,2.55139899,879.1,876.88,0.76415563]
[1757349085763,2.55139899,879.11,876.88,0.76415563]
[1757349086662,2.55139899,879.12,876.88,0.76415563]
[1757349087161,2.55139899,879.12,876.87,0.76415563]
[1757349089262,2.55139899,879.12,876.86,0.76415563]
[1757349089459,2.55139899,879.12,876.75,0.76415563]
[1757349089760,3.56523548,879.53,876.76,0.76415563]
[1757349090161,5.09371095,880.16,876.76,0.76415563]
[1757349090359,2.02886689,880.15,876.75,0.76415563]
[1757349090660,2.02886689,880.14,876.75,0.76415563]
[1757349090959,2.02886689,880.13,876.75,0.76415563]
[1757349091159,2.02886689,880.12,876.75,0.76415563]
[1757349091357,2.02886689,880.11,876.75,0.76415563]
[1757349091562,2.02886689,880.1,876.75,0.76415563]
[1757349091861,2.02886689,880.09,876.75,0.76415563]
[1757349092060,2.02886689,880.08,876.39,0.76415563]
[1757349092263,2.55139899,880.39,876.39,0.76415563]
[1757349092464,2.55139899,880.03,876.39,0.76415563]
[1757349093064,2.55139899,880.03,876.44,0.76415563]
[1757349093466,2.55139899,880.07,876.44,0.76415563]
[1757349094160,2.55139899,880.07,876.43,0.76415563]
[1757349094362,2.55139899,880.12,876.42,0.76415563]
[1757349094561,2.55139899,880.12,876.47,0.76415563]
[1757349094761,2.55139899,880.12,876.44,0.76415563]
[1757349094964,2.55139899,879.69,876.44,0.76415563]
[1757349095166,2.55139899,879.69,876.45,0.76415563]
[1757349095462,2.55139899,879.69,876.46,0.76415563]
[1757349095662,2.55139899,879.69,876.47,0.76415563]
[1757349096164,2.55139899,879.51,876.47,0.76415563]
[1757349097566,1.52567062,878.34,876.47,0.76415563]
[1757349098264,1.52567062,878.35,876.47,0.76415563]
[1757349098466,1.52567062,878.31,876.48,0.76415563]
[1757349099265,1.52567062,878.13,876.54,0.76415563]
[1757349099465,1.52567062,878.07,876.49,0.76415563]
[1757349099669,1.52567062,878.08,876.49,0.76415563]
[1757349099966,1.52567062,878.07,876.48,0.76415563]
[1757349100368,1.52567062,878.08,876.48,0.76415563]
[1757349101067,1.52567062,878.07,876.48,0.76415563]
[1757349101272,1.52567062,878.08,876.48,0.76415563]
[1757349101972,1.52567062,878.18,876.63,0.76415563]
[1757349102173,1.52567062,878.11,876.66,0.76415563]
[1757349102371,1.52567062,878.16,876.63,0.76415563]
[1757349102876,1.52567062,878.51,876.53,0.76415563]
[1757349103077,1.52567062,878.52,876.53,0.76415563]
[1757349103776,1.52567062,878.51,876.52,0.76415563]
[1757349104474,1.52567062,878.5,876.53,0.76415563]
[1757349105178,1.52567062,878.48,876.5,0.76415563]
[1757349106577,1.52567062,878.49,876.45,0.76415563]
[1757349110180,1.52567062,878.5,876.44,0.76415563]
[1757349110380,1.52567062,878.49,876.44,0.76415563]
[1757349110581,1.01691391,878.17,876.44,0.76415563]
[1757349111277,1.01691391,878.17,876.45,0.76415563]
[1757349111982,1.01691391,878.29,876.57,0.76415563]
[1757349112382,1.01691391,878.3,876.57,0.76415563]